[Event "Elitserien 2022/2023"]
[Site "Elite Hotel Marina Plaza, Kungstorget 6, Helsingborg, Sweden"]
[Date "2022.10.14"]
[Round "1.5"]
[White "Cederstam, Carl"]
[Black "Krantz, Christopher"]
[Result "1/2-1/2"]
[TimeControl "90 minutes for 40 moves + 30 minutes for the rest of the game + 30 seconds per move from move one."]
[WhiteTitle "FM"]
[WhiteFideId "1713329"]
[BlackFideId "1707876"]
[WhiteElo "2328"]
[BlackElo "2242"]

1. e4 {[%clk 01:28:58]} {[%emt 00:01:31]} d5 {[%clk 01:30:53]} {[%emt
00:00:16]} 2. exd5 {[%clk 01:29:14]} {[%emt 00:00:14]} Qxd5 {[%clk 01:31:15]}
{[%emt 00:00:07]} 3. Nc3 {[%clk 01:29:38]} {[%emt 00:00:07]} Qa5 {[%clk
01:31:35]} {[%emt 00:00:10]} 4. d4 {[%clk 01:29:36]} {[%emt 00:00:31]} Nf6
{[%clk 01:31:56]} {[%emt 00:00:09]} 5. Nf3 {[%clk 01:29:32]} {[%emt 00:00:34]}
Bf5 {[%clk 01:32:16]} {[%emt 00:00:09]} 6. Bc4 {[%clk 01:29:33]} {[%emt
00:00:30]} e6 {[%clk 01:32:36]} {[%emt 00:00:10]} 7. O-O {[%clk 01:29:14]}
{[%emt 00:00:49]} Bb4 {[%clk 01:32:16]} {[%emt 00:00:50]} 8. Bd2 {[%clk
01:28:22]} {[%emt 00:01:22]} O-O {[%clk 01:27:36]} {[%emt 00:05:11]} 9. a3
{[%clk 01:19:51]} {[%emt 00:09:01]} Bxc3 {[%clk 01:27:31]} {[%emt 00:00:36]} 10.
Bxc3 {[%clk 01:20:09]} {[%emt 00:00:11]} Qb6 {[%clk 01:24:01]} {[%emt
00:04:00]} 11. a4 {[%clk 01:17:39]} {[%emt 00:03:01]} a5 {[%clk 01:21:38]}
{[%emt 00:02:51]} 12. Ra3 {[%clk 01:05:27]} {[%emt 00:12:42]} Nc6 {[%clk
01:19:13]} {[%emt 00:02:56]} 13. Nh4 {[%clk 00:56:35]} {[%emt 00:09:22]} Be4
{[%clk 00:58:12]} {[%emt 00:21:31]} 14. Qd2 {[%clk 00:56:53]} {[%emt 00:00:13]}
Rfd8 {[%clk 00:51:09]} {[%emt 00:07:30]} 15. Rb3 {[%clk 00:49:39]} {[%emt
00:07:45]} Qa7 {[%clk 00:49:19]} {[%emt 00:02:20]} 16. Rb5 {[%clk 00:49:01]}
{[%emt 00:01:08]} Bd5 {[%clk 00:37:14]} {[%emt 00:12:35]} 17. Bd3 {[%clk
00:46:28]} {[%emt 00:03:04]} Ne4 {[%clk 00:31:14]} {[%emt 00:06:29]} 18. Qf4
{[%clk 00:29:08]} {[%emt 00:17:49]} Nxd4 {[%clk 00:18:55]} {[%emt 00:12:50]} 19.
Bxd4 {[%clk 00:17:06]} {[%emt 00:12:33]} Qxd4 {[%clk 00:19:09]} {[%emt
00:00:15]} 20. Nf3 {[%clk 00:17:29]} {[%emt 00:00:07]} Qf6 {[%clk 00:16:47]}
{[%emt 00:02:52]} 21. Qxc7 {[%clk 00:17:37]} {[%emt 00:00:24]} Nd6 {[%clk
00:12:33]} {[%emt 00:04:43]} 22. Rxa5 {[%clk 00:18:00]} {[%emt 00:00:07]} Rac8
{[%clk 00:11:20]} {[%emt 00:01:43]} 23. Qb6 {[%clk 00:18:29]} {[%emt 00:00:02]}
Bxf3 {[%clk 00:07:37]} {[%emt 00:04:12]} 24. gxf3 {[%clk 00:18:57]} {[%emt
00:00:02]} Nc4 {[%clk 00:06:31]} {[%emt 00:01:36]} 25. Bxc4 {[%clk 00:19:03]}
{[%emt 00:00:25]} Rxc4 {[%clk 00:06:53]} {[%emt 00:00:07]} 26. Qxb7 {[%clk
00:16:42]} {[%emt 00:02:51]} Rxc2 {[%clk 00:04:40]} {[%emt 00:02:43]} 27. Ra8
{[%clk 00:16:04]} {[%emt 00:01:08]} g6 {[%clk 00:04:28]} {[%emt 00:00:42]} 28.
a5 {[%clk 00:12:49]} {[%emt 00:03:45]} Rxa8 {[%clk 00:04:09]} {[%emt 00:00:49]}
29. Qxa8+ {[%clk 00:13:18]} {[%emt 00:00:02]} Kg7 {[%clk 00:04:32]} {[%emt
00:00:06]} 30. a6 {[%clk 00:11:54]} {[%emt 00:01:54]} Qg5+ {[%clk 00:03:05]}
{[%emt 00:01:56]} 31. Kh1 {[%clk 00:12:23]} {[%emt 00:00:01]} Rc1 {[%clk
00:03:28]} {[%emt 00:00:08]} 32. Rxc1 {[%clk 00:12:32]} {[%emt 00:00:22]} Qxc1+
{[%clk 00:03:54]} {[%emt 00:00:03]} 33. Kg2 {[%clk 00:12:57]} {[%emt 00:00:05]}
Qg5+ {[%clk 00:04:16]} {[%emt 00:00:07]} 34. Kf1 {[%clk 00:12:39]} {[%emt
00:00:48]} Qc1+ {[%clk 00:04:40]} {[%emt 00:00:07]} 35. Kg2 {[%clk 00:13:04]}
{[%emt 00:00:05]} Qg5+ {[%clk 00:05:04]} {[%emt 00:00:05]} 36. Kf1 {[%clk
00:13:31]} {[%emt 00:00:04]} Qc1+ {[%clk 00:05:28]} {[%emt 00:00:06]} 1/2-1/2

[Event "Elitserien 2022/2023"]
[Site "Elite Hotel Marina Plaza, Kungstorget 6, Helsingborg, Sweden"]
[Date "2022.10.14"]
[Round "1.6"]
[White "Rothen, Hakan"]
[Black "Tuomainen, Felix"]
[Result "0-1"]
[TimeControl "90 minutes for 40 moves + 30 minutes for the rest of the game + 30 seconds per move from move one."]
[WhiteTitle "FM"]
[BlackTitle "FM"]
[WhiteFideId "1700723"]
[BlackFideId "1720813"]
[WhiteElo "2232"]
[BlackElo "2230"]

1. d4 {[%clk 01:30:56]} {[%emt 00:00:03]} Nf6 {[%clk 01:30:49]} {[%emt
00:00:12]} 2. Bf4 {[%clk 01:30:59]} {[%emt 00:00:27]} d5 {[%clk 01:29:15]}
{[%emt 00:02:04]} 3. e3 {[%clk 01:31:05]} {[%emt 00:00:23]} e6 {[%clk
01:29:21]} {[%emt 00:00:24]} 4. Nd2 {[%clk 01:31:23]} {[%emt 00:00:12]} Bd6
{[%clk 01:29:30]} {[%emt 00:00:22]} 5. Bg3 {[%clk 01:31:44]} {[%emt 00:00:08]}
O-O {[%clk 01:28:44]} {[%emt 00:01:17]} 6. Bd3 {[%clk 01:31:38]} {[%emt
00:00:36]} b6 {[%clk 01:28:52]} {[%emt 00:00:22]} 7. e4 {[%clk 01:29:39]}
{[%emt 00:02:28]} dxe4 {[%clk 01:23:32]} {[%emt 00:05:51]} 8. Nxe4 {[%clk
01:29:58]} {[%emt 00:00:11]} Bb7 {[%clk 01:22:08]} {[%emt 00:01:54]} 9. Qf3
{[%clk 01:27:46]} {[%emt 00:02:43]} Bxe4 {[%clk 01:17:48]} {[%emt 00:04:50]} 10.
Bxe4 {[%clk 01:28:09]} {[%emt 00:00:06]} Nxe4 {[%clk 01:18:14]} {[%emt
00:00:05]} 11. Qxe4 {[%clk 01:28:31]} {[%emt 00:00:07]} Nd7 {[%clk 01:17:55]}
{[%emt 00:00:49]} 12. Nf3 {[%clk 01:27:28]} {[%emt 00:01:34]} Re8 {[%clk
01:13:46]} {[%emt 00:04:38]} 13. O-O-O {[%clk 01:22:17]} {[%emt 00:05:41]} Nf6
{[%clk 01:12:14]} {[%emt 00:02:02]} 14. Qe2 {[%clk 01:19:17]} {[%emt 00:03:30]}
Bxg3 {[%clk 01:02:23]} {[%emt 00:10:21]} 15. hxg3 {[%clk 01:19:39]} {[%emt
00:00:07]} Qd6 {[%emt 00:13:16]} 16. Rh4 {[%clk 00:58:59]} {[%emt 00:16:24]}
Rad8 17. Qe5 {[%emt 00:14:51]} Qd5 {[%clk 00:37:49]} {[%emt 00:03:14]} 18. b3
{[%clk 00:50:20]} c5 {[%clk 00:36:04]} {[%emt 00:11:24]} 19. c4 {[%clk
00:50:22]} Qxe5 {[%emt 00:11:37]} 20. Nxe5 {[%clk 00:47:13]} g5 {[%emt
00:05:27]} 21. Rhh1 {[%clk 00:46:54]} Rc8 {[%clk 00:20:35]} {[%emt 00:04:47]}
22. f3 {[%clk 00:41:37]} {[%emt 00:05:51]} b5 {[%clk 00:19:27]} {[%emt
00:01:39]} 23. dxc5 {[%clk 00:41:09]} {[%emt 00:00:57]} bxc4 {[%clk 00:19:34]}
{[%emt 00:00:24]} 24. Nxc4 {[%clk 00:37:52]} {[%emt 00:03:46]} Rxc5 {[%clk
00:18:19]} {[%emt 00:01:46]} 25. Rd6 {[%clk 00:35:46]} {[%emt 00:02:36]} Kg7
{[%clk 00:17:53]} {[%emt 00:00:56]} 26. Kb2 {[%clk 00:32:53]} {[%emt 00:03:22]}
Rb8 {[%clk 00:17:25]} {[%emt 00:00:54]} 27. Kc3 {[%clk 00:31:52]} {[%emt
00:01:34]} g4 {[%clk 00:14:45]} {[%emt 00:03:11]} 28. Kd4 {[%clk 00:28:44]}
{[%emt 00:03:37]} Rcb5 {[%clk 00:13:39]} {[%emt 00:01:34]} 29. Re1 {[%clk
00:21:21]} {[%emt 00:07:55]} gxf3 {[%clk 00:07:39]} {[%emt 00:06:31]} 30. gxf3
{[%clk 00:21:41]} {[%emt 00:00:09]} Rg5 {[%clk 00:07:42]} {[%emt 00:00:24]} 31.
g4 {[%clk 00:21:33]} {[%emt 00:00:40]} h5 {[%clk 00:07:53]} {[%emt 00:00:20]}
32. gxh5 {[%clk 00:20:16]} {[%emt 00:01:47]} Rxh5 {[%clk 00:07:15]} {[%emt
00:01:09]} 33. Re5 {[%clk 00:18:14]} {[%emt 00:02:31]} Rh4+ {[%clk 00:07:27]}
{[%emt 00:00:18]} 34. Kd3 {[%clk 00:17:14]} {[%emt 00:01:31]} Nd5 {[%clk
00:06:51]} {[%emt 00:01:04]} 35. Rg5+ {[%clk 00:08:19]} {[%emt 00:09:27]} Kf8
{[%clk 00:04:22]} {[%emt 00:02:57]} 36. Rd7 {[%clk 00:06:47]} {[%emt 00:02:04]}
Rh3 {[%clk 00:03:20]} {[%emt 00:01:26]} 37. Rxa7 {[%clk 00:06:34]} {[%emt
00:00:48]} Rxf3+ {[%clk 00:03:34]} {[%emt 00:00:17]} 38. Kd4 {[%clk 00:06:25]}
{[%emt 00:00:39]} Ne7 {[%clk 00:02:00]} {[%emt 00:02:03]} 39. Rc5 {[%clk
00:04:03]} {[%emt 00:02:53]} Rf1 {[%clk 00:00:40]} {[%emt 00:01:50]} 40. Ne5
{[%clk 00:02:53]} {[%emt 00:01:40]} Rd8+ {[%clk 00:00:38]} {[%emt 00:00:31]} 41.
Ke4 {[%clk 00:01:34]} {[%emt 00:01:50]} Rdd1 {[%clk 00:26:03]} {[%emt
00:05:02]} 42. Nd7+ {[%clk 00:18:20]} {[%emt 00:13:46]} Kg7 {[%clk 00:25:43]}
{[%emt 00:00:49]} 43. Rg5+ {[%clk 00:18:15]} {[%emt 00:00:37]} Kh6 {[%clk
00:25:24]} {[%emt 00:00:45]} 44. Rg3 {[%clk 00:18:09]} {[%emt 00:00:39]} Nc6
{[%clk 00:22:07]} {[%emt 00:03:46]} 45. Rh3+ {[%clk 00:14:03]} {[%emt
00:04:38]} Kg5 {[%clk 00:22:18]} {[%emt 00:00:16]} 46. Rc7 {[%clk 00:10:21]}
{[%emt 00:04:15]} f5+ {[%clk 00:22:26]} {[%emt 00:00:22]} 47. Ke3 {[%clk
00:10:44]} {[%emt 00:00:06]} f4+ {[%clk 00:22:45]} {[%emt 00:00:12]} 48. Ke4
{[%clk 00:11:04]} {[%emt 00:00:10]} Rd4# {[%clk 00:23:07]} {[%emt 00:00:08]}
0-1

[Event "Elitserien 2022/2023"]
[Site "Elite Hotel Marina Plaza, Kungstorget 6, Helsingborg, Sweden"]
[Date "2022.10.14"]
[Round "1.7"]
[White "Renman, Nils-Gustaf"]
[Black "Malesevic, Nedeljko"]
[Result "1-0"]
[TimeControl "90 minutes for 40 moves + 30 minutes for the rest of the game + 30 seconds per move from move one."]
[WhiteTitle "IM"]
[BlackTitle "FM"]
[WhiteFideId "1700367"]
[BlackFideId "1703447"]
[WhiteElo "2329"]
[BlackElo "2213"]

1. d4 {[%clk 01:30:58]} {[%emt 00:00:01]} d5 {[%clk 01:30:52]} {[%emt
00:00:08]} 2. c4 {[%clk 01:31:16]} {[%emt 00:00:12]} e6 {[%clk 01:31:13]}
{[%emt 00:00:09]} 3. Nc3 {[%clk 01:31:12]} {[%emt 00:00:34]} Nf6 {[%clk
01:31:28]} {[%emt 00:00:15]} 4. Nf3 {[%clk 01:29:54]} {[%emt 00:01:48]} Be7
{[%clk 01:31:12]} {[%emt 00:00:45]} 5. Bg5 {[%clk 01:29:39]} {[%emt 00:00:46]}
O-O {[%clk 01:31:02]} {[%emt 00:00:39]} 6. Qc2 {[%clk 01:28:42]} {[%emt
00:01:27]} c6 {[%clk 01:30:28]} {[%emt 00:01:05]} 7. e3 {[%clk 01:29:02]}
{[%emt 00:00:10]} Ne4 {[%clk 01:27:19]} {[%emt 00:03:38]} 8. Nxe4 {[%clk
01:28:44]} {[%emt 00:00:49]} dxe4 {[%clk 01:27:38]} {[%emt 00:00:10]} 9. Bxe7
{[%clk 01:29:08]} {[%emt 00:00:06]} Qxe7 {[%clk 01:28:00]} {[%emt 00:00:08]} 10.
Qxe4 {[%clk 01:29:30]} {[%emt 00:00:09]} Qb4+ {[%clk 01:28:17]} {[%emt
00:00:12]} 11. Nd2 {[%clk 01:29:52]} {[%emt 00:00:08]} Qxb2 {[%clk 01:28:36]}
{[%emt 00:00:12]} 12. Rb1 {[%clk 01:30:14]} {[%emt 00:00:08]} Qc3 {[%clk
01:23:48]} {[%emt 00:05:17]} 13. g4 {[%clk 01:23:13]} {[%emt 00:07:31]} Qa5
{[%clk 01:20:01]} {[%emt 00:04:18]} 14. Bd3 {[%clk 01:22:23]} {[%emt 00:01:21]}
f5 {[%clk 01:12:14]} {[%emt 00:08:17]} 15. gxf5 {[%clk 01:15:20]} {[%emt
00:07:33]} exf5 {[%clk 01:09:04]} {[%emt 00:03:40]} 16. Qf4 {[%clk 01:15:19]}
{[%emt 00:00:31]} c5 {[%clk 01:05:26]} {[%emt 00:04:09]} 17. d5 {[%clk
01:09:57]} {[%emt 00:05:50]} Qc3 {[%clk 01:00:13]} {[%emt 00:05:43]} 18. Ke2
{[%clk 01:09:51]} {[%emt 00:00:36]} Qf6 {[%clk 00:49:43]} {[%emt 00:11:00]} 19.
Rhg1 {[%clk 01:08:34]} {[%emt 00:01:47]} Nd7 {[%clk 00:46:18]} {[%emt
00:03:56]} 20. Nf3 {[%clk 01:08:29]} {[%emt 00:00:34]} h6 {[%clk 00:27:09]}
{[%emt 00:19:40]} 21. Rg3 {[%clk 01:02:08]} {[%emt 00:06:51]} a5 {[%clk
00:19:41]} {[%emt 00:07:57]} 22. Rbg1 {[%clk 01:01:38]} {[%emt 00:01:00]} Rf7
{[%clk 00:10:58]} {[%emt 00:09:13]} 23. Rg6 {[%clk 00:44:38]} {[%emt 00:17:30]}
Qb2+ {[%clk 00:10:25]} {[%emt 00:01:02]} 24. Kf1 {[%clk 00:44:28]} {[%emt
00:00:40]} Qc3 {[%clk 00:05:44]} {[%emt 00:05:11]} 25. Be2 {[%clk 00:39:29]}
{[%emt 00:05:30]} Kh7 {[%clk 00:03:19]} {[%emt 00:02:55]} 26. Qg3 {[%clk
00:36:36]} {[%emt 00:03:22]} f4 {[%clk 00:02:27]} {[%emt 00:01:22]} 27. Rxh6+
{[%clk 00:35:52]} {[%emt 00:01:14]} Kg8 {[%clk 00:02:34]} {[%emt 00:00:23]} 28.
Qh4 {[%clk 00:35:34]} {[%emt 00:00:48]} Qa1+ {[%clk 00:01:40]} {[%emt
00:01:25]} 29. Ne1 {[%clk 00:34:57]} {[%emt 00:01:06]} Rf5 {[%clk 00:01:06]}
{[%emt 00:01:05]} 30. Rh8+ {[%clk 00:34:41]} {[%emt 00:00:46]} Kf7 {[%clk
00:01:29]} {[%emt 00:00:07]} 31. Bh5+ {[%clk 00:34:23]} {[%emt 00:00:47]} 1-0

[Event "Elitserien 2022/2023"]
[Site "Elite Hotel Marina Plaza, Kungstorget 6, Helsingborg, Sweden"]
[Date "2022.10.14"]
[Round "1.9"]
[White "Cicak, Slavko"]
[Black "Akesson, Ralf"]
[Result "1-0"]
[TimeControl "90 minutes for 40 moves + 30 minutes for the rest of the game + 30 seconds per move from move one."]
[WhiteTitle "GM"]
[BlackTitle "GM"]
[WhiteFideId "1700588"]
[BlackFideId "1700120"]
[WhiteElo "2470"]
[BlackElo "2421"]

1. e4 {[%clk 01:30:25]} {[%emt 00:00:35]} c6 {[%clk 01:30:37]} {[%emt
00:00:23]} 2. d4 {[%clk 01:28:45]} {[%emt 00:02:10]} d5 {[%clk 01:30:58]}
{[%emt 00:00:09]} 3. exd5 {[%clk 01:28:41]} {[%emt 00:00:34]} cxd5 {[%clk
01:31:18]} {[%emt 00:00:09]} 4. Bd3 {[%clk 01:29:03]} {[%emt 00:00:09]} Nc6
{[%clk 01:31:27]} {[%emt 00:00:21]} 5. c3 {[%clk 01:29:19]} {[%emt 00:00:13]}
Nf6 {[%clk 01:28:42]} {[%emt 00:03:16]} 6. h3 {[%clk 01:28:56]} {[%emt
00:00:54]} Qc7 {[%clk 01:23:11]} {[%emt 00:06:00]} 7. Nf3 {[%clk 01:28:58]}
{[%emt 00:00:29]} e6 {[%clk 01:22:56]} {[%emt 00:00:45]} 8. O-O {[%clk
01:28:39]} {[%emt 00:00:48]} Bd6 {[%clk 01:23:18]} {[%emt 00:00:08]} 9. Re1
{[%clk 01:28:26]} {[%emt 00:00:43]} Bd7 {[%clk 01:19:57]} {[%emt 00:03:51]} 10.
Qe2 {[%clk 01:27:54]} {[%emt 00:01:02]} O-O-O {[%clk 01:09:12]} {[%emt
00:11:16]} 11. Ne5 {[%clk 01:25:06]} {[%emt 00:03:18]} Be8 {[%clk 01:09:20]}
{[%emt 00:00:21]} 12. Nd2 {[%clk 01:21:23]} {[%emt 00:04:13]} Kb8 {[%clk
01:02:36]} {[%emt 00:07:14]} 13. Ndf3 {[%clk 01:18:47]} {[%emt 00:03:06]} Ne7
{[%clk 01:01:00]} {[%emt 00:02:06]} 14. Bd2 {[%clk 01:14:14]} {[%emt 00:05:03]}
Nd7 {[%clk 00:53:09]} {[%emt 00:08:21]} 15. Rac1 {[%clk 01:04:48]} {[%emt
00:09:56]} Nb6 {[%clk 00:52:27]} {[%emt 00:01:12]} 16. b3 {[%clk 00:55:40]}
{[%emt 00:09:38]} f6 {[%clk 00:48:04]} {[%emt 00:04:53]} 17. c4 {[%clk
00:50:43]} {[%emt 00:05:28]} dxc4 {[%clk 00:31:08]} {[%emt 00:17:25]} 18. Nxc4
{[%clk 00:46:29]} {[%emt 00:04:44]} Nxc4 {[%clk 00:28:21]} {[%emt 00:03:17]} 19.
Bxc4 {[%clk 00:44:16]} {[%emt 00:02:43]} Ba3 {[%clk 00:26:10]} {[%emt
00:02:41]} 20. Rc2 {[%clk 00:38:44]} {[%emt 00:06:03]} Bg6 {[%clk 00:23:23]}
{[%emt 00:03:16]} 21. Bd3 {[%clk 00:38:15]} {[%emt 00:00:58]} Qd6 {[%clk
00:19:55]} {[%emt 00:03:59]} 22. Bxg6 {[%clk 00:36:07]} {[%emt 00:02:38]} hxg6
{[%clk 00:20:03]} {[%emt 00:00:22]} 23. Qe4 {[%clk 00:30:58]} {[%emt 00:05:38]}
g5 {[%clk 00:18:26]} {[%emt 00:02:08]} 24. h4 {[%clk 00:30:30]} {[%emt
00:00:59]} Rh5 {[%clk 00:08:57]} {[%emt 00:09:58]} 25. hxg5 {[%clk 00:20:56]}
{[%emt 00:10:04]} Rdh8 {[%clk 00:09:00]} {[%emt 00:00:27]} 26. g3 {[%clk
00:19:31]} {[%emt 00:01:55]} Rh1+ {[%clk 00:02:44]} {[%emt 00:06:46]} 27. Kg2
{[%clk 00:19:51]} {[%emt 00:00:10]} Rxe1 {[%clk 00:03:10]} {[%emt 00:00:04]} 28.
Bxe1 {[%clk 00:19:18]} {[%emt 00:01:03]} f5 {[%clk 00:02:34]} {[%emt 00:01:06]}
29. Qd3 {[%clk 00:19:36]} {[%emt 00:00:11]} Nc6 {[%clk 00:01:53]} {[%emt
00:01:11]} 30. Qc4 {[%clk 00:15:58]} {[%emt 00:04:09]} Re8 {[%clk 00:01:19]}
{[%emt 00:01:04]} 31. Bd2 {[%clk 00:13:16]} {[%emt 00:03:12]} Ka8 {[%clk
00:01:30]} {[%emt 00:00:18]} 32. Qa4 {[%clk 00:11:50]} {[%emt 00:01:56]} Rd8
{[%clk 00:00:36]} {[%emt 00:01:25]} 33. Qc4 {[%clk 00:06:12]} {[%emt 00:06:09]}
a6 {[%clk 00:00:40]} {[%emt 00:00:26]} 34. Qa4 {[%clk 00:05:37]} {[%emt
00:01:04]} Qe7 {[%clk 00:00:33]} {[%emt 00:00:36]} 35. Rxc6 {[%clk 00:04:57]}
{[%emt 00:01:10]} bxc6 {[%clk 00:00:38]} {[%emt 00:00:25]} 36. Ne5 {[%clk
00:05:14]} {[%emt 00:00:13]} 1-0